[Event "Titled Tuesday Blitz April 11 Early 2023"]
[White "Burdalev, Kirill"]
[Black "dDobravcan"]
[WhiteFideId "14121913"]
[WhiteElo "2236"]
[BlackElo "2139"]
[Result "0-1"]
[Round "07"]
[TimeControl "180+2"]
[Date "2023.04.11"]
[WhiteClock "0:00:02"]
[BlackClock "0:00:13"]

1. d4 {[%clk 0:03:00]}  d6 {[%clk 0:02:59]} 2. c4 {[%clk 0:02:57]}  e5 {[%clk 0:02:58]} 3. Nf3 {[%clk 0:02:44]}  e4 {[%clk 0:02:57]} 4. Ng5 {[%clk 0:02:39]}  f5 {[%clk 0:02:56]} 5. Nc3 {[%clk 0:02:37]}  Be7 {[%clk 0:02:54]} 6. Nh3 {[%clk 0:02:24]}  c6 {[%clk 0:02:53]} 7. Nf4 {[%clk 0:02:22]}  Na6 {[%clk 0:02:50]} 8. d5 {[%clk 0:02:16]}  Nc7 {[%clk 0:02:39]} 9. g3 {[%clk 0:02:12]}  Nf6 {[%clk 0:02:35]} 10. h4 {[%clk 0:02:10]}  O-O {[%clk 0:02:30]} 11. Bg2 {[%clk 0:02:08]}  g6 {[%clk 0:02:23]} 12. b3 {[%clk 0:02:06]}  Ng4 {[%clk 0:02:22]} 13. Bb2 {[%clk 0:02:03]}  Bf6 {[%clk 0:02:22]} 14. O-O {[%clk 0:01:50]}  Bxh4 {[%clk 0:01:47]} 15. gxh4 {[%clk 0:01:48]}  Qxh4 {[%clk 0:01:46]} 16. Nh3 {[%clk 0:01:47]}  c5 {[%clk 0:01:42]} 17. Qd2 {[%clk 0:01:36]}  e3 {[%clk 0:01:35]} 18. fxe3 {[%clk 0:01:34]}  Qg3 {[%clk 0:01:35]} 19. Rf3 {[%clk 0:01:22]}  Qh2+ {[%clk 0:01:33]} 20. Kf1 {[%clk 0:01:18]}  Ne5 {[%clk 0:01:26]} 21. Rf2 {[%clk 0:01:10]}  Ng4 {[%clk 0:01:22]} 22. Rf4 {[%clk 0:00:53]}  Re8 {[%clk 0:01:16]} 23. Nd1 {[%clk 0:00:50]}  Qg3 {[%clk 0:01:07]} 24. Qc3 {[%clk 0:00:40]}  Ne5 {[%clk 0:01:03]} 25. Qe1 {[%clk 0:00:37]}  Qh2 {[%clk 0:01:01]} 26. Qh4 {[%clk 0:00:27]}  Bd7 {[%clk 0:00:48]} 27. Ndf2 {[%clk 0:00:21]}  Rf8 {[%clk 0:00:39]} 28. Ng5 {[%clk 0:00:09]}  Qxh4 {[%clk 0:00:37]} 29. Rxh4 {[%clk 0:00:10]}  h5 {[%clk 0:00:34]} 30. Ke1 {[%clk 0:00:10]}  Ng4 {[%clk 0:00:32]} 31. Nxg4 {[%clk 0:00:07]}  fxg4 {[%clk 0:00:31]} 32. Kd2 {[%clk 0:00:07]}  Rae8 {[%clk 0:00:31]} 33. Be4 {[%clk 0:00:07]}  Bf5 {[%clk 0:00:30]} 34. Bxf5 {[%clk 0:00:07]}  Rxf5 {[%clk 0:00:27]} 35. Ne6 {[%clk 0:00:07]}  Nxe6 {[%clk 0:00:25]} 36. dxe6 {[%clk 0:00:08]}  Rxe6 {[%clk 0:00:24]} 37. Rg1 {[%clk 0:00:08]}  Rf2 {[%clk 0:00:22]} 38. Rg3 {[%clk 0:00:07]}  Kf7 {[%clk 0:00:20]} 39. Ke1 {[%clk 0:00:05]}  Rf5 {[%clk 0:00:20]} 40. Rh1 {[%clk 0:00:05]}  Re4 {[%clk 0:00:19]} 41. Rf1 {[%clk 0:00:02]}  Ke6 {[%clk 0:00:19]} 42. Rxf5 {[%clk 0:00:02]}  gxf5 {[%clk 0:00:18]} 43. Rg1 {[%clk 0:00:02]}  h4 {[%clk 0:00:18]} 44. Kf2 {[%clk 0:00:03]}  f4 {[%clk 0:00:16]} 45. exf4 {[%clk 0:00:03]}  Rxf4+ {[%clk 0:00:15]} 46. Kg2 {[%clk 0:00:03]}  Kf5 {[%clk 0:00:14]} 47. Rf1 {[%clk 0:00:04]}  h3+ {[%clk 0:00:13]} 48. Kg1 {[%clk 0:00:02]}  h2+ {[%clk 0:00:13]} 49. Kxh2 {[%clk 0:00:02]}  Rxf1 {[%clk 0:00:14]} 50. Kg2 {[%clk 0:00:02]}  Rb1 {[%clk 0:00:13]} 51. Bc3 {[%clk 0:00:02]}  Rc1 {[%clk 0:00:13]} 0-1


[Site "https://www.chess.com"]

[Event "Titled Tuesday Blitz April 11 Early 2023"]
[White "Gardezi, Arsal"]
[Black "Munro, Allan"]
[WhiteFideId "30949521"]
[BlackFideId "7700245"]
[WhiteElo "1906"]
[BlackElo "2084"]
[Result "0-1"]
[Round "07"]
[TimeControl "180+2"]
[Date "2023.04.11"]
[WhiteClock "0:00:14"]
[BlackClock "0:00:37"]

1. Nf3 {[%clk 0:03:00]}  d5 {[%clk 0:02:58]} 2. d4 {[%clk 0:02:57]}  Nf6 {[%clk 0:02:57]} 3. c3 {[%clk 0:02:46]}  c5 {[%clk 0:02:56]} 4. Bf4 {[%clk 0:02:46]}  Nc6 {[%clk 0:02:57]} 5. Nbd2 {[%clk 0:02:46]}  Bf5 {[%clk 0:02:53]} 6. e3 {[%clk 0:02:45]}  e6 {[%clk 0:02:53]} 7. Bb5 {[%clk 0:02:38]}  Nd7 {[%clk 0:02:52]} 8. O-O {[%clk 0:02:23]}  Be7 {[%clk 0:02:52]} 9. a4 {[%clk 0:02:05]}  O-O {[%clk 0:02:51]} 10. Re1 {[%clk 0:01:51]}  a6 {[%clk 0:02:12]} 11. Bxc6 {[%clk 0:01:37]}  bxc6 {[%clk 0:02:13]} 12. e4 {[%clk 0:01:37]}  Bg6 {[%clk 0:02:03]} 13. Qb3 {[%clk 0:01:21]}  Qc8 {[%clk 0:01:38]} 14. c4 {[%clk 0:00:46]}  dxe4 {[%clk 0:01:04]} 15. Nxe4 {[%clk 0:00:46]}  cxd4 {[%clk 0:01:02]} 16. Nd6 {[%clk 0:00:17]}  Qc7 {[%clk 0:00:44]} 17. Qa3 {[%clk 0:00:14]}  c5 {[%clk 0:00:37]} 0-1


[Site "https://www.chess.com"]

[Event "Titled Tuesday Blitz April 11 Early 2023"]
[White "Rosh Jain"]
[Black "Hartikainen, Jarmo"]
[WhiteFideId "25789465"]
[BlackFideId "503134"]
[WhiteElo "2233"]
[BlackElo "2050"]
[Result "1-0"]
[Round "07"]
[TimeControl "180+2"]
[Date "2023.04.11"]
[WhiteClock "0:02:47"]
[BlackClock "0:02:29"]

1. e4 {[%clk 0:03:00]}  c5 {[%clk 0:02:59]} 2. Nf3 {[%clk 0:02:57]}  Nc6 {[%clk 0:02:59]} 3. d4 {[%clk 0:02:57]}  cxd4 {[%clk 0:02:58]} 4. Nxd4 {[%clk 0:02:58]}  Nf6 {[%clk 0:02:58]} 5. Nc3 {[%clk 0:02:58]}  d6 {[%clk 0:02:59]} 6. Bc4 {[%clk 0:02:54]}  e6 {[%clk 0:02:58]} 7. Bb3 {[%clk 0:02:53]}  a6 {[%clk 0:02:58]} 8. Bg5 {[%clk 0:02:53]}  Be7 {[%clk 0:02:57]} 9. O-O {[%clk 0:02:53]}  Qc7 {[%clk 0:02:57]} 10. Kh1 {[%clk 0:02:51]}  b5 {[%clk 0:02:52]} 11. f4 {[%clk 0:02:48]}  b4 {[%clk 0:02:49]} 12. Nxc6 {[%clk 0:02:48]}  Qxc6 {[%clk 0:02:29]} 13. Ba4 {[%clk 0:02:47]} 1-0


[Site "https://www.chess.com"]

[Event "Titled Tuesday Blitz April 11 Early 2023"]
[White "Sanchez, Robert"]
[Black "Torres Hernandez, Leslie Carolin"]
[WhiteFideId "2034360"]
[BlackFideId "8400504"]
[WhiteElo "1993"]
[BlackElo "1920"]
[Result "0-1"]
[Round "07"]
[TimeControl "180+2"]
[Date "2023.04.11"]
[WhiteClock "0:02:14"]
[BlackClock "0:01:44"]

1. e4 {[%clk 0:03:00]}  c5 {[%clk 0:02:57]} 2. Nf3 {[%clk 0:03:00]}  d6 {[%clk 0:02:57]} 3. d4 {[%clk 0:03:01]}  cxd4 {[%clk 0:02:57]} 4. Nxd4 {[%clk 0:03:01]}  Nf6 {[%clk 0:02:58]} 5. Nc3 {[%clk 0:03:02]}  a6 {[%clk 0:02:57]} 6. Be3 {[%clk 0:03:02]}  e5 {[%clk 0:02:57]} 7. Nb3 {[%clk 0:03:01]}  Be7 {[%clk 0:02:57]} 8. f3 {[%clk 0:03:02]}  O-O {[%clk 0:02:57]} 9. Qd2 {[%clk 0:03:03]}  Be6 {[%clk 0:02:57]} 10. O-O-O {[%clk 0:03:03]}  Nbd7 {[%clk 0:02:57]} 11. g4 {[%clk 0:03:04]}  b5 {[%clk 0:02:55]} 12. g5 {[%clk 0:03:04]}  b4 {[%clk 0:02:53]} 13. Ne2 {[%clk 0:03:04]}  Nh5 {[%clk 0:02:52]} 14. f4 {[%clk 0:03:04]}  exf4 {[%clk 0:02:51]} 15. Nxf4 {[%clk 0:03:04]}  Nxf4 {[%clk 0:02:50]} 16. Bxf4 {[%clk 0:03:05]}  Ne5 {[%clk 0:02:46]} 17. Be2 {[%clk 0:03:03]}  a5 {[%clk 0:02:46]} 18. Nd4 {[%clk 0:03:04]}  Bxa2 {[%clk 0:02:34]} 19. Nf5 {[%clk 0:03:04]}  Rc8 {[%clk 0:02:28]} 20. Nxe7+ {[%clk 0:03:01]}  Qxe7 {[%clk 0:02:28]} 21. Qxd6 {[%clk 0:03:01]}  Qxd6 {[%clk 0:02:27]} 22. Rxd6 {[%clk 0:03:01]}  Nc4 {[%clk 0:02:27]} 23. Ra6 {[%clk 0:02:56]}  Rc5 {[%clk 0:02:11]} 24. Bxc4 {[%clk 0:02:52]}  Bxc4 {[%clk 0:02:10]} 25. Bd6 {[%clk 0:02:52]}  Bxa6 {[%clk 0:02:06]} 26. Bxc5 {[%clk 0:02:50]}  Rc8 {[%clk 0:02:06]} 27. Rd1 {[%clk 0:02:49]}  h6 {[%clk 0:02:03]} 28. Bb6 {[%clk 0:02:47]}  a4 {[%clk 0:01:59]} 29. h4 {[%clk 0:02:42]}  Rc4 {[%clk 0:01:49]} 30. Rd4 {[%clk 0:02:38]}  Rc6 {[%clk 0:01:47]} 31. Rxb4 {[%clk 0:02:37]}  Bd3 {[%clk 0:01:47]} 32. c3 {[%clk 0:02:25]}  a3 {[%clk 0:01:47]} 33. bxa3 {[%clk 0:02:17]}  Rxc3+ {[%clk 0:01:47]} 34. Kd2 {[%clk 0:02:17]}  Rxa3 {[%clk 0:01:47]} 35. Bc5 {[%clk 0:02:15]}  Ba6 {[%clk 0:01:44]} 36. Rb8+ {[%clk 0:02:14]} 0-1


[Site "https://www.chess.com"]

[Event "Titled Tuesday Blitz April 11 Early 2023"]
[White "Mitrabha, Guha"]
[Black "Bluebaum, Matthias"]
[WhiteFideId "5057000"]
[BlackFideId "24651516"]
[WhiteElo "2507"]
[BlackElo "2638"]
[Result "0-1"]
[Round "08"]
[TimeControl "180+2"]
[Date "2023.04.11"]
[WhiteClock "0:00:10"]
[BlackClock "0:00:20"]

1. c4 {[%clk 0:03:00]}  e6 {[%clk 0:02:59]} 2. Nf3 {[%clk 0:02:59]}  d5 {[%clk 0:03:00]} 3. e3 {[%clk 0:03:00]}  Nf6 {[%clk 0:03:00]} 4. b3 {[%clk 0:03:00]}  Bd6 {[%clk 0:03:01]} 5. Bb2 {[%clk 0:03:00]}  O-O {[%clk 0:03:02]} 6. Be2 {[%clk 0:02:59]}  dxc4 {[%clk 0:02:52]} 7. bxc4 {[%clk 0:02:59]}  b6 {[%clk 0:02:53]} 8. O-O {[%clk 0:02:59]}  Bb7 {[%clk 0:02:53]} 9. d4 {[%clk 0:02:59]}  c5 {[%clk 0:02:51]} 10. Nbd2 {[%clk 0:02:59]}  Nc6 {[%clk 0:02:45]} 11. Rc1 {[%clk 0:02:56]}  cxd4 {[%clk 0:02:43]} 12. exd4 {[%clk 0:02:55]}  Rc8 {[%clk 0:02:43]} 13. Bd3 {[%clk 0:02:56]}  Ne7 {[%clk 0:02:43]} 14. Qb3 {[%clk 0:02:52]}  Ng6 {[%clk 0:02:41]} 15. Rfe1 {[%clk 0:02:47]}  Bb8 {[%clk 0:02:30]} 16. a4 {[%clk 0:02:30]}  Nh5 {[%clk 0:02:29]} 17. a5 {[%clk 0:02:22]}  Nhf4 {[%clk 0:02:30]} 18. Bf1 {[%clk 0:02:22]}  Re8 {[%clk 0:01:53]} 19. axb6 {[%clk 0:02:12]}  axb6 {[%clk 0:01:54]} 20. c5 {[%clk 0:02:06]}  Bd5 {[%clk 0:01:46]} 21. Qxb6 {[%clk 0:02:01]}  Bc7 {[%clk 0:01:46]} 22. Qa6 {[%clk 0:02:00]}  Rb8 {[%clk 0:01:46]} 23. Bc3 {[%clk 0:01:58]}  Qf6 {[%clk 0:01:44]} 24. g3 {[%clk 0:01:10]}  Qf5 {[%clk 0:01:44]} 25. gxf4 {[%clk 0:00:52]}  Nxf4 {[%clk 0:01:27]} 26. Re3 {[%clk 0:00:46]}  Qg4+ {[%clk 0:01:06]} 27. Kh1 {[%clk 0:00:44]}  Nh3 {[%clk 0:01:07]} 28. Bxh3 {[%clk 0:00:38]}  Qxh3 {[%clk 0:01:07]} 29. Kg1 {[%clk 0:00:39]}  Bf4 {[%clk 0:00:53]} 30. Qf1 {[%clk 0:00:35]}  Qh6 {[%clk 0:00:53]} 31. Rce1 {[%clk 0:00:33]}  e5 {[%clk 0:00:46]} 32. dxe5 {[%clk 0:00:27]}  Re6 {[%clk 0:00:46]} 33. Ne4 {[%clk 0:00:21]}  Bxe3 {[%clk 0:00:22]} 34. Rxe3 {[%clk 0:00:21]}  Bxe4 {[%clk 0:00:23]} 35. Rxe4 {[%clk 0:00:21]}  Qg6+ {[%clk 0:00:24]} 36. Ng5 {[%clk 0:00:16]}  Qxg5+ {[%clk 0:00:24]} 37. Kh1 {[%clk 0:00:16]}  Qf5 {[%clk 0:00:24]} 38. Re3 {[%clk 0:00:13]}  Rb1 {[%clk 0:00:23]} 39. Re1 {[%clk 0:00:13]}  Qf3+ {[%clk 0:00:24]} 40. Qg2 {[%clk 0:00:13]}  Rxe1+ {[%clk 0:00:15]} 41. Bxe1 {[%clk 0:00:13]}  Qxg2+ {[%clk 0:00:16]} 42. Kxg2 {[%clk 0:00:13]}  Rxe5 {[%clk 0:00:17]} 43. Bb4 {[%clk 0:00:13]}  Re4 {[%clk 0:00:18]} 44. Ba5 {[%clk 0:00:08]}  Rc4 {[%clk 0:00:17]} 45. Bb6 {[%clk 0:00:08]}  f5 {[%clk 0:00:18]} 46. Kf3 {[%clk 0:00:09]}  Kf7 {[%clk 0:00:19]} 47. Ke3 {[%clk 0:00:09]}  Ke6 {[%clk 0:00:19]} 48. Kd3 {[%clk 0:00:10]}  Kd5 {[%clk 0:00:20]} 49. f3 {[%clk 0:00:10]}  Rh4 {[%clk 0:00:20]} 0-1


[Site "https://www.chess.com"]

[Event "Titled Tuesday Blitz April 11 Early 2023"]
[White "Zhigalko, Sergei"]
[Black "Pranesh M"]
[WhiteFideId "13502956"]
[BlackFideId "35028600"]
[WhiteElo "2626"]
[BlackElo "2437"]
[Result "1-0"]
[Round "08"]
[TimeControl "180+2"]
[Date "2023.04.11"]
[WhiteClock "0:00:02"]
[BlackClock "0:00:05"]

1. e4 {[%clk 0:03:00]}  e5 {[%clk 0:03:00]} 2. Nf3 {[%clk 0:03:01]}  Nc6 {[%clk 0:03:00]} 3. Bc4 {[%clk 0:03:01]}  Nf6 {[%clk 0:03:00]} 4. d3 {[%clk 0:03:01]}  Bc5 {[%clk 0:02:59]} 5. O-O {[%clk 0:03:00]}  O-O {[%clk 0:03:00]} 6. Nbd2 {[%clk 0:03:00]}  a6 {[%clk 0:02:59]} 7. c3 {[%clk 0:03:01]}  h6 {[%clk 0:02:58]} 8. Re1 {[%clk 0:03:00]}  d6 {[%clk 0:02:40]} 9. Bb3 {[%clk 0:02:53]}  Ng4 {[%clk 0:02:24]} 10. Re2 {[%clk 0:02:52]}  Kh8 {[%clk 0:02:25]} 11. h3 {[%clk 0:02:47]}  f5 {[%clk 0:02:24]} 12. exf5 {[%clk 0:02:28]}  Nxf2 {[%clk 0:02:25]} 13. Rxf2 {[%clk 0:02:28]}  Bxf5 {[%clk 0:02:25]} 14. Ne4 {[%clk 0:02:24]}  Ba7 {[%clk 0:02:18]} 15. Qe2 {[%clk 0:02:09]}  d5 {[%clk 0:02:14]} 16. Ng3 {[%clk 0:01:54]}  Bxd3 {[%clk 0:01:47]} 17. Qxd3 {[%clk 0:01:46]}  Bxf2+ {[%clk 0:01:45]} 18. Kxf2 {[%clk 0:01:45]}  e4 {[%clk 0:01:46]} 19. Nxe4 {[%clk 0:01:19]}  Ne5 {[%clk 0:01:46]} 20. Qxd5 {[%clk 0:01:15]}  Qh4+ {[%clk 0:01:45]} 21. Ke2 {[%clk 0:01:07]}  Nxf3 {[%clk 0:01:46]} 22. gxf3 {[%clk 0:01:08]}  Qxh3 {[%clk 0:01:45]} 23. Nf2 {[%clk 0:00:59]}  Qg3 {[%clk 0:01:31]} 24. Be3 {[%clk 0:00:54]}  Rae8 {[%clk 0:01:13]} 25. Rf1 {[%clk 0:00:12]}  c6 {[%clk 0:00:59]} 26. Qh5 {[%clk 0:00:11]}  Qf4 {[%clk 0:00:51]} 27. Ng4 {[%clk 0:00:04]}  Re7 {[%clk 0:00:43]} 28. Rf2 {[%clk 0:00:01]}  Rfe8 {[%clk 0:00:32]} 29. Kf1 {[%clk 0:00:02]}  Rxe3 {[%clk 0:00:24]} 30. Nxe3 {[%clk 0:00:03]}  Qxe3 {[%clk 0:00:25]} 31. Qg4 {[%clk 0:00:03]}  Re5 {[%clk 0:00:23]} 32. f4 {[%clk 0:00:03]}  Re8 {[%clk 0:00:17]} 33. Re2 {[%clk 0:00:03]}  Qd3 {[%clk 0:00:16]} 34. Kf2 {[%clk 0:00:03]}  Rf8 {[%clk 0:00:15]} 35. Qf3 {[%clk 0:00:03]}  Qf5 {[%clk 0:00:14]} 36. Re4 {[%clk 0:00:03]}  Qc5+ {[%clk 0:00:14]} 37. Ke2 {[%clk 0:00:03]}  a5 {[%clk 0:00:14]} 38. Qe3 {[%clk 0:00:03]}  Qb5+ {[%clk 0:00:14]} 39. Ke1 {[%clk 0:00:02]}  Qh5 {[%clk 0:00:14]} 40. Re5 {[%clk 0:00:02]}  Qh1+ {[%clk 0:00:14]} 41. Ke2 {[%clk 0:00:02]}  Qg2+ {[%clk 0:00:14]} 42. Qf2 {[%clk 0:00:02]}  Qg4+ {[%clk 0:00:14]} 43. Qf3 {[%clk 0:00:02]}  Qd7 {[%clk 0:00:15]} 44. Bc2 {[%clk 0:00:02]}  Qf7 {[%clk 0:00:15]} 45. Qe4 {[%clk 0:00:03]}  Qg8 {[%clk 0:00:12]} 46. Re7 {[%clk 0:00:02]}  b5 {[%clk 0:00:11]} 47. Ke3 {[%clk 0:00:03]}  a4 {[%clk 0:00:11]} 48. a3 {[%clk 0:00:03]}  Rd8 {[%clk 0:00:11]} 49. Bd3 {[%clk 0:00:03]}  Rf8 {[%clk 0:00:08]} 50. Ke2 {[%clk 0:00:02]}  Rd8 {[%clk 0:00:07]} 51. Kf2 {[%clk 0:00:02]}  Rf8 {[%clk 0:00:07]} 52. Kg3 {[%clk 0:00:03]}  Rd8 {[%clk 0:00:07]} 53. Qg6 {[%clk 0:00:03]}  c5 {[%clk 0:00:04]} 54. Be4 {[%clk 0:00:03]}  c4 {[%clk 0:00:05]} 55. Kf3 {[%clk 0:00:04]}  Rf8 {[%clk 0:00:04]} 56. Kg3 {[%clk 0:00:03]}  Rf6 {[%clk 0:00:05]} 57. Qg4 {[%clk 0:00:03]}  Qb8 {[%clk 0:00:05]} 58. Qxg7# {[%clk 0:00:02]} 1-0


[Site "https://www.chess.com"]

[Event "Titled Tuesday Blitz April 11 Early 2023"]
[White "Zakhartsov, Vladimir"]
[Black "Gholami Orimi, Mahdi"]
[WhiteFideId "4145097"]
[BlackFideId "12558486"]
[WhiteElo "2497"]
[BlackElo "2363"]
[Result "0-1"]
[Round "08"]
[TimeControl "180+2"]
[Date "2023.04.11"]
[WhiteClock "0:00:01"]
[BlackClock "0:00:05"]

1. e4 {[%clk 0:02:59]}  e5 {[%clk 0:02:58]} 2. Nf3 {[%clk 0:02:59]}  Nc6 {[%clk 0:02:57]} 3. Nc3 {[%clk 0:02:59]}  Nf6 {[%clk 0:02:57]} 4. a3 {[%clk 0:03:00]}  d5 {[%clk 0:02:54]} 5. Bb5 {[%clk 0:02:59]}  Nxe4 {[%clk 0:02:39]} 6. Qe2 {[%clk 0:02:59]}  Nxc3 {[%clk 0:02:06]} 7. Qxe5+ {[%clk 0:02:58]}  Be7 {[%clk 0:02:06]} 8. Qxc3 {[%clk 0:02:56]}  O-O {[%clk 0:02:01]} 9. Bxc6 {[%clk 0:02:56]}  bxc6 {[%clk 0:02:02]} 10. d4 {[%clk 0:02:56]}  Bd6 {[%clk 0:01:52]} 11. Be3 {[%clk 0:02:39]}  Rb8 {[%clk 0:01:48]} 12. O-O {[%clk 0:02:34]}  Re8 {[%clk 0:01:13]} 13. Ne5 {[%clk 0:02:27]}  Qh4 {[%clk 0:01:12]} 14. Qxc6 {[%clk 0:02:22]}  Be6 {[%clk 0:01:12]} 15. Qc3 {[%clk 0:02:05]}  f6 {[%clk 0:01:09]} 16. g3 {[%clk 0:01:42]}  Qh3 {[%clk 0:00:58]} 17. Nd3 {[%clk 0:01:35]}  Bg4 {[%clk 0:00:53]} 18. Nf4 {[%clk 0:01:29]}  Bxf4 {[%clk 0:00:53]} 19. Bxf4 {[%clk 0:01:29]}  g5 {[%clk 0:00:38]} 20. Bxc7 {[%clk 0:01:16]}  Rbc8 {[%clk 0:00:37]} 21. Rfe1 {[%clk 0:01:10]}  Be2 {[%clk 0:00:34]} 22. f3 {[%clk 0:00:39]}  Re7 {[%clk 0:00:11]} 23. Qd2 {[%clk 0:00:38]}  Rce8 {[%clk 0:00:11]} 24. Bd6 {[%clk 0:00:31]}  Re6 {[%clk 0:00:11]} 25. Bc7 {[%clk 0:00:25]}  Bxf3 {[%clk 0:00:09]} 26. Rxe6 {[%clk 0:00:19]}  Rxe6 {[%clk 0:00:10]} 27. Be5 {[%clk 0:00:19]}  fxe5 {[%clk 0:00:08]} 28. Qxg5+ {[%clk 0:00:19]}  Kf7 {[%clk 0:00:08]} 29. Qd2 {[%clk 0:00:17]}  e4 {[%clk 0:00:07]} 30. Rf1 {[%clk 0:00:15]}  Rf6 {[%clk 0:00:07]} 31. Rf2 {[%clk 0:00:14]}  Qe6 {[%clk 0:00:04]} 32. Qa5 {[%clk 0:00:13]}  e3 {[%clk 0:00:04]} 33. Qc7+ {[%clk 0:00:09]}  Kg6 {[%clk 0:00:04]} 34. Rxf3 {[%clk 0:00:04]}  Rxf3 {[%clk 0:00:05]} 35. Qd8 {[%clk 0:00:02]}  e2 {[%clk 0:00:05]} 36. Kg2 {[%clk 0:00:03]}  Rf1 {[%clk 0:00:04]} 37. h4 {[%clk 0:00:02]}  e1=Q {[%clk 0:00:04]} 38. h5+ {[%clk 0:00:01]}  Kxh5 {[%clk 0:00:04]} 39. Qh4+ {[%clk 0:00:01]}  Kg6 {[%clk 0:00:05]} 0-1


[Site "https://www.chess.com"]

[Event "Titled Tuesday Blitz April 11 Early 2023"]
[White "Corrales Jimenez, Fidel"]
[Black "Svane, Frederik"]
[WhiteFideId "3506690"]
[BlackFideId "12923044"]
[WhiteElo "2541"]
[BlackElo "2502"]
[Result "0-1"]
[Round "08"]
[TimeControl "180+2"]
[Date "2023.04.11"]
[WhiteClock "0:00:02"]
[BlackClock "0:00:26"]

1. e4 {[%clk 0:03:00]}  c5 {[%clk 0:03:00]} 2. Nf3 {[%clk 0:03:00]}  d6 {[%clk 0:03:01]} 3. d4 {[%clk 0:03:01]}  cxd4 {[%clk 0:03:01]} 4. Nxd4 {[%clk 0:03:01]}  Nf6 {[%clk 0:03:02]} 5. Nc3 {[%clk 0:03:02]}  Nc6 {[%clk 0:03:03]} 6. Bg5 {[%clk 0:03:01]}  e6 {[%clk 0:03:03]} 7. Qd2 {[%clk 0:03:00]}  a6 {[%clk 0:03:03]} 8. O-O-O {[%clk 0:03:01]}  Be7 {[%clk 0:03:03]} 9. h4 {[%clk 0:02:59]}  Bd7 {[%clk 0:03:02]} 10. Nxc6 {[%clk 0:02:58]}  Bxc6 {[%clk 0:03:02]} 11. Bd3 {[%clk 0:02:59]}  h6 {[%clk 0:02:58]} 12. Bf4 {[%clk 0:02:54]}  Rc8 {[%clk 0:02:52]} 13. f3 {[%clk 0:02:53]}  d5 {[%clk 0:02:52]} 14. Kb1 {[%clk 0:02:52]}  dxe4 {[%clk 0:02:51]} 15. fxe4 {[%clk 0:02:52]}  Qa5 {[%clk 0:02:43]} 16. Rhf1 {[%clk 0:02:47]}  Bb4 {[%clk 0:02:40]} 17. Qe1 {[%clk 0:02:39]}  Bxe4 {[%clk 0:02:13]} 18. Bxe4 {[%clk 0:01:42]}  Rxc3 {[%clk 0:02:13]} 19. Bd2 {[%clk 0:01:33]}  Rc4 {[%clk 0:02:05]} 20. Bxb7 {[%clk 0:01:26]}  O-O {[%clk 0:01:57]} 21. Bf3 {[%clk 0:01:17]}  Rb8 {[%clk 0:01:54]} 22. Bxb4 {[%clk 0:01:16]}  Rcxb4 {[%clk 0:01:47]} 23. b3 {[%clk 0:01:16]}  Qc5 {[%clk 0:01:48]} 24. Qf2 {[%clk 0:01:12]}  Qe7 {[%clk 0:01:43]} 25. Qd2 {[%clk 0:01:09]}  Rxh4 {[%clk 0:01:31]} 26. Qa5 {[%clk 0:01:05]}  e5 {[%clk 0:01:25]} 27. Rfe1 {[%clk 0:01:03]}  e4 {[%clk 0:01:24]} 28. Qxa6 {[%clk 0:00:59]}  Qe5 {[%clk 0:01:20]} 29. Be2 {[%clk 0:00:54]}  Nd5 {[%clk 0:01:17]} 30. Rxd5 {[%clk 0:00:54]}  Qxd5 {[%clk 0:01:18]} 31. Bc4 {[%clk 0:00:54]}  Qd2 {[%clk 0:01:10]} 32. Rc1 {[%clk 0:00:22]}  Rf4 {[%clk 0:01:02]} 33. g3 {[%clk 0:00:20]}  Rf2 {[%clk 0:01:00]} 34. a4 {[%clk 0:00:16]}  e3 {[%clk 0:00:59]} 35. Qa7 {[%clk 0:00:15]}  Re8 {[%clk 0:00:57]} 36. a5 {[%clk 0:00:15]}  e2 {[%clk 0:00:54]} 37. Qxf2 {[%clk 0:00:14]}  e1=Q {[%clk 0:00:54]} 38. Qxf7+ {[%clk 0:00:15]}  Kh8 {[%clk 0:00:46]} 39. Rxe1 {[%clk 0:00:13]}  Rxe1+ {[%clk 0:00:47]} 40. Kb2 {[%clk 0:00:14]}  Qd4+ {[%clk 0:00:46]} 41. Ka3 {[%clk 0:00:14]}  Ra1+ {[%clk 0:00:32]} 42. Kb4 {[%clk 0:00:14]}  Qd2+ {[%clk 0:00:33]} 43. c3 {[%clk 0:00:12]}  Qd6+ {[%clk 0:00:34]} 44. Kb5 {[%clk 0:00:11]}  Qb8+ {[%clk 0:00:34]} 45. Ka6 {[%clk 0:00:08]}  Qa8+ {[%clk 0:00:34]} 46. Kb6 {[%clk 0:00:07]}  Qxa5+ {[%clk 0:00:33]} 47. Kc6 {[%clk 0:00:06]}  Qa8+ {[%clk 0:00:34]} 48. Kc5 {[%clk 0:00:05]}  Qc8+ {[%clk 0:00:34]} 49. Kb4 {[%clk 0:00:05]}  Qb8+ {[%clk 0:00:33]} 50. Kc5 {[%clk 0:00:05]}  Ra5+ {[%clk 0:00:33]} 51. Kd4 {[%clk 0:00:06]}  Qe5+ {[%clk 0:00:30]} 52. Kd3 {[%clk 0:00:06]}  Qd6+ {[%clk 0:00:31]} 53. Kc2 {[%clk 0:00:05]}  Ra8 {[%clk 0:00:29]} 54. b4 {[%clk 0:00:05]}  Rd8 {[%clk 0:00:29]} 55. Kb3 {[%clk 0:00:06]}  Qd1+ {[%clk 0:00:29]} 56. Ka3 {[%clk 0:00:04]}  Ra8+ {[%clk 0:00:27]} 57. Kb2 {[%clk 0:00:04]}  Qd2+ {[%clk 0:00:26]} 58. Kb1 {[%clk 0:00:05]}  Qxc3 {[%clk 0:00:26]} 59. Bd5 {[%clk 0:00:02]}  Ra1# {[%clk 0:00:26]} 0-1


[Site "https://www.chess.com"]